fUSD/lending_fUSD_20250923
["ID","MTS","AMOUNT","RATE_DAILY","PERIOD"]
[387193512,1758632533126,-288.0,0.00018574,2]
[387193513,1758632541184,-186.81491862,0.00018574,2]
[387193514,1758632542391,-203.26447388,0.00018574,2]
[387193515,1758632545024,-231.0,0.00018574,2]
[387193516,1758632548877,-402.36708578,0.00018574,2]
[387193517,1758632551161,-227.77035227,0.00018574,2]
[387193518,1758632557879,-198.50174261,0.00018574,2]
[387193519,1758632560467,-327.37319169,0.00018574,2]
[387193520,1758632565315,-204.866813,0.00018574,2]
[387193521,1758632573442,-153.88568145,0.00018574,2]
[387193522,1758632575450,-211.44089628,0.00018574,2]
[387193523,1758632576927,-300.0,0.00018574,2]
[387193524,1758632582469,203.0,0.00018573,2]
[387193525,1758632585882,-182.56974573,0.00018574,2]
[387193526,1758632585904,-405.35273174,0.00018574,2]
[387193527,1758632589436,-151.0,0.00018574,2]
[387193528,1758632592515,-240.94261952,0.00018574,2]
[387193529,1758632604081,-338.71680831,0.00018574,2]
[387193530,1758632607422,-805.13,0.00018574,2]
[387193531,1758632609610,-247.66191681,0.00018574,2]
[387193532,1758632610788,182.29362578,0.00018474,2]
[387193533,1758632618476,-203.95920506,0.00018574,2]
[387193534,1758632621285,-188.08,0.00018574,2]
[387193535,1758632622976,-247.44044317,0.00018574,2]
[387193536,1758632626041,-153.20236977,0.00018574,2]
[387193537,1758632630114,-545.48834338,0.00018574,2]
[387193538,1758632633679,-365.88601598,0.00018574,2]
[387193539,1758632635192,-151.0,0.00018574,2]
[387193540,1758632637802,-301.47356526,0.00018574,2]
[387193541,1758632640335,-194.05659393,0.00018574,2]
[387193542,1758632646496,-203.64,0.00018574,2]
[387193543,1758632648217,-211.18126513,0.00018574,2]
[387193544,1758632650835,-192.19994631,0.00018574,2]
[387193545,1758632654223,-297.83834839,0.00018574,2]
[387193546,1758632655896,-229.84394993,0.00018574,2]
[387193547,1758632662469,-428.21965374,0.00018574,2]
[387193548,1758632667511,-151.44,0.00018574,2]
[387193549,1758632669358,-280.25091325,0.00018574,2]
[387193550,1758632677753,-213.99128167,0.00018574,2]
[387193551,1758632680085,-181.56310724,0.00018574,2]
[387193552,1758632686590,-196.27632115,0.00018574,2]
[387193553,1758632690787,-350.77181399,0.00018574,2]
[387193554,1758632695511,-169.47595592,0.00018574,2]
[387193555,1758632699219,-202.76052866,0.00018574,2]
[387193556,1758632701990,300.0,0.00018573,2]
[387193557,1758632702187,1200.0,0.00018573,2]
[387193558,1758632705884,-450.36,0.00018574,2]
[387193559,1758632709542,-196.15859647,0.00018574,2]
[387193560,1758632712963,-316.65273695,0.00018574,2]
[387193561,1758632714976,150.0,0.00018,2]
[387193562,1758632715157,-311.11196316,0.00018574,2]
[387193563,1758632721470,-158.27044724,0.00018574,2]
[387193564,1758632721982,150.0,0.00018,2]
[387193565,1758632725375,-228.64930479,0.00018574,2]
[387193566,1758632726967,-213.04824877,0.00018574,2]
[387193567,1758632730454,-269.1924303,0.00018574,2]
[387193568,1758632730477,-44.53612996,0.00018574,2]
[387193569,1758632734744,150.0,0.00018,2]
[387193570,1758632734777,-195.53612996,0.00018574,2]
[387193571,1758632737948,-178.57832196,0.00018574,2]
[387193572,1758632741220,-169.79967335,0.00018574,2]
[387193573,1758632743349,-93.49047894,0.00018574,2]
[387193574,1758632743374,-151.0,0.00018574,2]
[387193575,1758632743401,-159.36253366,0.00018574,2]
[387193576,1758632746150,-305.60453605,0.00018574,2]
[387193577,1758632751925,-259.05738048,0.00018574,2]
[387193578,1758632754294,-152.29628534,0.00018574,2]
[387193579,1758632757485,-154.50081297,0.00018574,2]
[387193580,1758632757507,-7.87862854,0.00018574,2]
[387193581,1758632759692,-143.12137146,0.00018574,2]
[387193582,1758632759715,-98.11154997,0.00018574,2]
[387193583,1758632765959,-151.0,0.00018574,2]
[387193584,1758632765982,-117.36099702,0.00018574,2]
[387193585,1758632768052,-174.55359508,0.00018574,2]
[387193586,1758632768075,-241.9494029,0.00018574,2]
[387193587,1758632768802,35.85799904,0.00018574,2]
[387193588,1758632770076,-256.05659306,0.00018574,2]
[387193589,1758632913359,150.0,0.000167,2]
[387193590,1758632913623,150.0,0.0001788,2]
[387193599,1758633032039,-200.0,0.00018574,2]
[387193600,1758633032048,-150.0,0.00018701,2]
[387193601,1758633032058,-300.0,0.00018719,2]
[387193602,1758633032067,-400.0,0.00018751,2]
[387193603,1758633032077,-200.0,0.0001876,2]
[387193604,1758633032086,-666.0,0.00018769,3]
[387193605,1758633032096,-203.64,0.00018837,2]
[387193606,1758633032105,-337.13,0.00018864,2]
[387193607,1758633032117,-556.9,0.0001893,2]
[387193608,1758633032126,-276.03,0.00018937,2]
[387193609,1758633032136,-1178.98,0.00018975,2]
[387193610,1758633032145,-163.59,0.00019015,2]
[387193611,1758633032154,-150.0,0.0001907,2]
[387193612,1758633032163,-1000.0,0.0001907,2]
[387193613,1758633032173,-322.6107,0.00019114,2]
[387193614,1758633032183,-151.0,0.00019114,2]
[387193615,1758633032192,-151.0,0.00019114,2]
[387193616,1758633032202,-1200.0,0.00019124,2]
[387193617,1758633032212,-914.697,0.00019125,2]
[387193618,1758633032222,-300.0,0.00019125,2]
[387193619,1758633032231,-80526.31,0.00019126,2]
[387193620,1758633032240,-411.74,0.000192,2]
[387193621,1758633032250,-805.25767525,0.00019202,2]
[387193622,1758633032260,-817.0,0.00019628,2]
[387193623,1758633032269,-817.0,0.00019628,2]
[387193624,1758633032278,-151.0,0.00019662,2]
[387193626,1758633032288,-151.0,0.00019662,2]
[387193627,1758633032297,-805.25767525,0.00019683,2]
[387193628,1758633032306,-1000.0,0.000197,2]
[387193629,1758633032316,-788.33,0.000197,2]
[387193630,1758633032325,-168.0,0.00019705,2]
[387193631,1758633032334,-168.0,0.00019742,2]
[387193632,1758633032344,-168.0,0.00019743,2]
[387193633,1758633032357,-4203.62121,0.000198,2]
[387193634,1758633032366,-1229.0,0.00019801,2]
[387193636,1758633032376,-1244.00292779,0.00019801,2]
[387193638,1758633032385,-817.0,0.00019801,2]
[387193640,1758633032395,-151.0,0.00019801,2]
[387193642,1758633032405,-151.0,0.00019801,2]
[387193644,1758633032414,-151.0,0.00019801,2]
[387193646,1758633032424,-151.0,0.00019801,2]
[387193648,1758633032434,-151.0,0.00019801,2]
[387193650,1758633032444,-151.92582929,0.00019801,2]
[387193652,1758633032454,-337.13,0.00019807,2]
[387193654,1758633032463,-200.0,0.0001984,2]
[387193656,1758633032473,-168.0,0.00019849,2]
[387193658,1758633032488,-168.0,0.00019863,2]
[387193659,1758633032498,-805.25767527,0.00019868,2]
[387193660,1758633032507,-500.0,0.000199,2]
[387193661,1758633032517,-231.92806141,0.000199,2]
[387193662,1758633032527,-5144.88396888,0.000199,2]
[387193663,1758633032536,-499.36736292,0.000199,2]
[387193664,1758633032546,-171.69002199,0.000199,2]
[387193665,1758633032558,-198.16446328,0.000199,2]
[387193667,1758633032568,-2636.06377095,0.000199,2]
[387193669,1758633032578,-261.76852374,0.000199,2]
[387193671,1758633032588,-204.79871734,0.0001999,2]
[387193673,1758633032598,-204.79871734,0.0001999,2]
[387193675,1758633032608,-3115.19867,0.00019999,2]
[387193676,1758633032618,-523.58261058,0.00019999,2]
[387193677,1758633032627,-943.8091249,0.00019999,2]
[387193678,1758633032637,-150.0,0.00019999,2]
[387193679,1758633032646,-150.0,0.00019999,2]
[387193681,1758633032657,-150.0,0.00019999,2]
[387193683,1758633032667,-150.0,0.00019999,2]
[387193685,1758633032677,-150.0,0.00019999,2]
[387193686,1758633032687,-205.46378157,0.00019999,2]
[387193687,1758633032696,-150.0,0.00019999,2]
[387193688,1758633032706,-500.0,0.00019999,2]
[387193689,1758633032715,-150.0,0.00019999,2]
[387193690,1758633032725,-500.0,0.00019999,2]
[387193691,1758633032735,-150.0,0.00019999,2]
[387193692,1758633032745,-500.0,0.00019999,2]
[387193693,1758633032754,-150.0,0.00019999,2]
[387193694,1758633032764,-150.0,0.00019999,2]
[387193695,1758633032774,-150.0,0.00019999,2]
[387193696,1758633032784,-500.0,0.00019999,2]
[387193697,1758633032793,-500.0,0.00019999,2]
[387193698,1758633032803,-500.0,0.00019999,2]
[387193699,1758633032812,-150.0,0.00019999,2]
[387193700,1758633032822,-817.0,0.0002,2]
[387193701,1758633032831,-5323.62816878,0.0002,2]
[387193702,1758633032840,-213860.83524222,0.0002,2]
[387193703,1758633032892,-1272.5,0.0002,2]
[387193704,1758633032903,-467.69824505,0.0002,2]
[387193705,1758633032915,-10864.43125626,0.0002,2]
[387193706,1758633032926,-1450.0,0.0002,2]
[387193707,1758633032954,-500.0,0.00019125,2]
[387193708,1758633032963,-3028.8709054,0.0002,2]
[387193710,1758633037777,-827.91,0.00018577,2]
[387193711,1758633037787,-240.63336856,0.00019125,2]
[387193712,1758633037797,-47138.17704151,0.0002,2]
[387193713,1758633037808,-16104.0,0.0002,2]
[387193714,1758633037820,-10290.0,0.0002,2]
[387193715,1758633037831,-40250.28586,0.0002,2]
[387193716,1758633037843,-14818.65479966,0.0002,2]
[387193717,1758633037991,-161961.64922158,0.0002,2]
[387193718,1758633038001,-3215439.41925376,0.0002,2]
[387193719,1758633038011,-3950.0,0.0002,2]
[387193720,1758633038021,-11517.94041873,0.0002,14]
[387193721,1758633038030,-2881.47450148,0.0002,7]
[387193722,1758633038039,-3151.93787407,0.0002,5]
[387193723,1758633038049,-1029.56399412,0.0002,2]
[387193724,1758633038063,-2820.65975815,0.0002,2]
[387193726,1758633038072,-90681.30343953,0.0002,2]
[387193727,1758633038085,-8677.26275431,0.0002,2]
[387193729,1758633038094,-1000.0,0.0002,2]
[387193731,1758633038104,-500.0,0.0002,2]
[387193732,1758633038113,-500.0,0.0002,2]
[387193733,1758633038122,-1000.0,0.0002,2]
[387193734,1758633038132,-198.14721258,0.0002,2]
[387193735,1758633038141,-500.0,0.0002,2]
[387193736,1758633038150,-1000.0,0.0002,2]
[387193737,1758633038160,-1000.0,0.0002,2]
[387193738,1758633038169,-1000.0,0.0002,2]
[387193739,1758633038178,-1254.08936052,0.0002,2]
[387193740,1758633038187,-1000.0,0.0002,2]
[387193741,1758633038197,-1011.7270749,0.0002,2]
[387193742,1758633038206,-385177.86667643,0.0002,2]
[387193744,1758633038216,-25819.29264865,0.0002,5]
[387193747,1758633038226,-1061847.11123522,0.0002,2]
[387193922,1758633039983,-416981.50118054,0.0002,2]
[387193924,1758633039996,-5032.41281757,0.0002,2]
[387194223,1758633043036,-404.19270188,0.000199,2]
[387194225,1758633043045,-4443.90318123,0.0002,2]
[387194293,1758633046607,-2408.98491959,0.0002,2]
[387194299,1758633180382,165.45,0.0002875,120]
[387194300,1758633262841,657.47,0.00021945,30]
[387194301,1758633439241,150.0,0.000176,2]
[387194304,1758633510309,14701.19469658,0.00030137,120]
[387194305,1758633714580,156.25,9.376e-05,2]
[387194306,1758633714781,156.25,0.00010046,2]
[387194307,1758633714999,156.25,0.00010716,2]
[387194308,1758633715429,156.25,0.00011385,2]
[387194309,1758633715639,156.25,0.00012055,2]
[387194310,1758633716072,156.25,0.00012725,2]
[387194311,1758633716302,156.25,0.00013395,2]
[387194312,1758633716509,156.25,0.00014064,2]
[387194313,1758633716739,156.25,0.00014734,2]
[387194314,1758633716936,156.25,0.00015404,2]
[387194315,1758633717329,156.25,0.00016073,2]
[387194316,1758633717579,156.25,0.00016743,2]
[387194317,1758633717790,156.25,0.00017413,2]
[387194318,1758633718030,156.25,0.00018083,2]
[387194319,1758633841761,804.47153422,0.00018,2]
[387194320,1758633867586,4171.867605,0.00018558,2]
[387194322,1758633965327,267.0,0.000166,2]
[387194323,1758633965716,262.0,0.0001778,2]
[387194324,1758633994935,224.0,0.00018516,2]
[387194325,1758634081959,200.0,0.00018502,2]
[387194326,1758634094592,4128.01,0.00018502,2]
[387194330,1758634122722,310.29710117,0.00018409,2]
[387194331,1758634125112,1000.0,0.00018511,2]
[387194332,1758634129808,195.52213125,0.00018555,2]
[387194333,1758634140276,371.93730027,0.00018528,2]
[387194336,1758634189723,8794.23346731,0.00018429,2]
[387194337,1758634189745,4362.32653269,0.00018429,2]
[387194340,1758634202390,-255.73,0.00018616,2]
[387194341,1758634202412,-490.71777724,0.00018622,3]
[387194342,1758634202434,-300.0,0.00018628,2]
[387194343,1758634202455,-1464.04,0.0001864,2]
[387194344,1758634202477,-1232.3,0.00018655,2]
[387194345,1758634202499,-1200.0,0.00018659,2]
[387194346,1758634202521,-10057.21222276,0.0001866,2]
[387194347,1758634203403,-680.76777724,0.0001866,2]
[387194348,1758634203426,-666.0,0.0001867,3]
[387194349,1758634203449,-337.1021,0.0001868,2]
[387194350,1758634203474,-156.25,0.00018752,2]
[387194351,1758634203497,-1209.66,0.0001878,2]
[387194352,1758634203519,-273.67,0.00018789,2]
[387194353,1758634203541,-540.4,0.0001888,2]
[387194354,1758634203566,-248.71531821,0.00018888,2]
[387194355,1758634203589,-257.0,0.0001897,2]
[387194356,1758634203614,-150.0,0.00019029,7]
[387194357,1758634203638,-166.11,0.00019042,2]
[387194358,1758634203662,-659.91,0.00019073,2]
[387194359,1758634203688,-159.43,0.00019116,2]
[387194360,1758634203713,-165.45,0.00019167,2]
[387194361,1758634203735,-153.34092287,0.00019178,2]
[387194362,1758634203756,-265.11016265,0.00019186,2]
[387194363,1758634203778,-943.53977727,0.00019394,2]
[387194364,1758634203807,-516.0,0.00019452,2]
[387194365,1758634203831,-823.48,0.00019478,2]
[387194366,1758634203854,-1029.0,0.000196,2]
[387194367,1758634203876,-1000.0,0.000196,2]
[387194368,1758634203899,-273.67,0.00019728,2]
[387194369,1758634203922,-171.61,0.00019771,2]
[387194370,1758634203947,-151.0,0.00019788,2]
[387194371,1758634203971,-151.0,0.00019788,2]
[387194372,1758634203994,-151.0,0.00019788,2]
[387194373,1758634204017,-151.0,0.00019788,2]
[387194374,1758634204040,-151.0,0.00019788,2]
[387194375,1758634204066,-288.89,0.00019788,2]
[387194376,1758634204089,-151.0,0.00019788,2]
[387194377,1758634204112,-151.0,0.00019788,2]
[387194378,1758634204135,-151.0,0.00019788,2]
[387194379,1758634204160,-151.0,0.00019788,2]
[387194380,1758634204183,-151.0,0.00019788,2]
[387194381,1758634204206,-151.0,0.00019788,2]
[387194382,1758634204229,-151.0,0.00019788,2]
[387194383,1758634204253,-151.0,0.00019788,2]
[387194384,1758634204277,-151.0,0.00019788,2]
[387194385,1758634204298,-151.0,0.00019788,2]
[387194386,1758634204322,-151.0,0.00019788,2]
[387194387,1758634204345,-151.0,0.00019788,2]
[387194388,1758634204368,-151.0,0.00019788,2]
[387194389,1758634204390,-151.0,0.00019788,2]
[387194390,1758634204412,-151.0,0.00019788,2]
[387194391,1758634204436,-151.0,0.00019788,2]
[387194392,1758634204458,-151.0,0.00019788,2]
[387194393,1758634204480,-151.0,0.00019788,2]
[387194394,1758634204502,-151.0,0.00019788,2]
[387194395,1758634204525,-151.0,0.00019788,2]
[387194396,1758634204548,-89.89394176,0.00019788,2]
[387194397,1758634204750,-61.10605824,0.00019788,2]
[387194398,1758634204773,-151.0,0.00019788,2]
[387194399,1758634204798,-227.74,0.00019788,2]
[387194400,1758634204821,-200.0,0.00019788,2]
[387194401,1758634204843,-322.6107,0.00019788,2]
[387194402,1758634204865,-155.10046571,0.00019788,2]
[387194403,1758634204888,-200.0,0.00019788,2]
[387194404,1758634204910,-667.77264,0.000198,2]
[387194405,1758634204932,-200.0,0.0001984,2]
[387194406,1758634204955,-260.72,0.00019886,2]
[387194407,1758634204978,-195.52213124,0.00019899,2]
[387194408,1758634205000,-3394.23819696,0.000199,2]
[387194409,1758634205022,-667.77264,0.000199,2]
[387194410,1758634205043,-174.51234916,0.000199,2]
[387194411,1758634205067,-1950.3245,0.000199,2]
[387194412,1758634205089,-568.19518198,0.000199,2]
[387194413,1758634205112,-1382.3305778,0.000199,2]
[387194414,1758634205132,-1325.8845,0.000199,2]
[387194415,1758634205154,-269.46180126,0.000199,2]
[387194416,1758634205178,-640.0,0.00019915,2]
[387194417,1758634205199,-151.0,0.00019997,2]
[387194418,1758634205220,-500.0,0.00019999,2]
[387194419,1758634205241,-152.13274211,0.00019999,2]
[387194420,1758634205263,-150.0,0.00019999,2]
[387194421,1758634205283,-150.0,0.00019999,2]
[387194422,1758634205306,-500.0,0.00019999,2]
[387194423,1758634205329,-150.0,0.00019999,2]
[387194424,1758634205350,-150.0,0.00019999,2]
[387194425,1758634205374,-82.57551554,0.00019999,2]
[387194426,1758634205475,-172.47,0.0001999,2]
[387194427,1758634205499,-417.42448446,0.00019999,2]
[387194428,1758634205520,-500.0,0.00019999,2]
[387194429,1758634205542,-259.08112238,0.00019999,2]
[387194430,1758634205566,-152.96048792,0.00019999,2]
[387194431,1758634205587,-214.45720574,0.00019999,2]
[387194432,1758634205609,-150.0,0.00019999,2]
[387194433,1758634205631,-150.0,0.00019999,2]
[387194434,1758634205656,-150.0,0.00019999,2]
[387194435,1758634205680,-150.0,0.00019999,2]
[387194436,1758634205702,-200.0,0.00019999,2]
[387194437,1758634205724,-150.0,0.00019999,2]
[387194438,1758634205745,-500.0,0.00019999,2]
[387194439,1758634205766,-150.0,0.00019999,2]
[387194440,1758634205788,-1344.0,0.00019999,2]
[387194441,1758634205813,-150.0,0.00019999,2]
[387194442,1758634205835,-500.0,0.00019999,2]
[387194443,1758634205860,-150.0,0.00019999,2]
[387194444,1758634205885,-150.0,0.00019999,2]
[387194445,1758634205909,-150.0,0.00019999,2]
[387194446,1758634205933,-150.0,0.00019999,2]
[387194447,1758634205954,-150.0,0.00019999,2]
[387194448,1758634205977,-150.0,0.00019999,2]
[387194449,1758634206000,-500.0,0.00019999,2]
[387194450,1758634206232,-150.0,0.00019999,2]
[387194451,1758634206255,-150.0,0.00019999,2]
[387194452,1758634206279,-500.0,0.00019999,2]
[387194453,1758634206300,-500.0,0.00019999,2]
[387194454,1758634206323,-400.2733501,0.00019999,2]
[387194455,1758634206348,-500.0,0.00019999,2]
[387194456,1758634206368,-500.0,0.00019999,2]
[387194457,1758634206392,-500.0,0.00019999,2]
[387194458,1758634206415,-500.0,0.00019999,2]
[387194459,1758634206436,-500.0,0.00019999,2]
[387194460,1758634206457,-350.0,0.00019999,2]
[387194461,1758634206481,-500.0,0.00019999,2]
[387194462,1758634206506,-500.0,0.00019999,2]
[387194463,1758634206536,-243.04709983,0.00019999,2]
[387194464,1758634206562,-500.0,0.00019999,2]
[387194465,1758634206587,-500.0,0.00019999,2]
[387194466,1758634206611,-500.0,0.00019999,2]
[387194467,1758634206636,-500.0,0.00019999,2]
[387194468,1758634206657,-296.68366062,0.00019999,2]
[387194469,1758634206678,-177.70912162,0.00019999,2]
[387194470,1758634206701,-21.89346733,0.00019999,2]
[387194471,1758634206923,-172.47,0.0001999,2]
[387194472,1758634206945,-538.52330428,0.00019999,2]
[387194473,1758634206968,-258.59800148,0.00019999,2]
[387194474,1758634206988,-14030.40869424,0.0002,2]
[387194475,1758634207674,-15000.0,0.0002,2]
[387194476,1758634207887,-2739.88,0.00018936,2]
[387194477,1758634207908,-198.0,0.00019787,2]
[387194478,1758634207929,-543.07,0.0001999,2]
[387194479,1758634207950,-543.07,0.0001999,2]
[387194480,1758634207972,-4000.0,0.0002,4]
[387194481,1758634207996,-6975.98,0.0002,2]
[387194482,1758634208206,-15000.0,0.0002,2]
[387194483,1758634208373,-15000.0,0.0002,2]
[387194484,1758634208548,-15000.0,0.0002,2]
[387194485,1758634209016,-15000.0,0.0002,2]
[387194486,1758634209388,-15000.0,0.0002,2]
[387194487,1758634210312,-850.0,0.00019999,2]
[387194488,1758634210336,-14150.0,0.0002,2]
[387194489,1758634211170,-15000.0,0.0002,2]
[387194490,1758634212003,-15000.0,0.0002,2]
[387194491,1758634212965,-7173.79311941,0.0002,2]
[387194492,1758634212986,-1000.0,0.0002,2]
[387194493,1758634213011,-265.1416265,0.0002,2]
[387194494,1758634213037,-1000.0,0.0002,2]
[387194495,1758634213061,-1000.0,0.0002,2]
[387194496,1758634213084,-1000.0,0.0002,2]
[387194497,1758634213105,-1000.0,0.0002,2]
[387194498,1758634213126,-1000.0,0.0002,2]
[387194499,1758634213147,-1000.0,0.0002,2]
[387194500,1758634213168,-561.06525409,0.0002,2]
[387194501,1758634215622,-438.93474591,0.0002,2]
[387194502,1758634215645,-1000.0,0.0002,2]
[387194503,1758634215668,-1000.0,0.0002,2]
[387194504,1758634215690,-1000.0,0.0002,2]
[387194505,1758634215713,-1000.0,0.0002,2]
[387194506,1758634215739,-1000.0,0.0002,2]
[387194507,1758634215763,-1000.0,0.0002,2]
[387194508,1758634215786,-1000.0,0.0002,2]
[387194509,1758634215813,-1000.0,0.0002,2]
[387194510,1758634215839,-1000.0,0.0002,2]
[387194511,1758634215863,-1000.0,0.0002,2]
[387194512,1758634215889,-1000.0,0.0002,2]
[387194513,1758634215911,-1000.0,0.0002,2]
[387194514,1758634215933,-1000.0,0.0002,2]
[387194515,1758634215954,-1000.0,0.0002,2]
[387194516,1758634215977,-561.06525409,0.0002,2]
[387194517,1758634217379,-438.93474591,0.0002,2]
[387194518,1758634217403,-1000.0,0.0002,2]
[387194519,1758634217425,-1000.0,0.0002,2]
[387194520,1758634217448,-1000.0,0.0002,2]
[387194521,1758634217471,-1000.0,0.0002,2]
[387194522,1758634217493,-1000.0,0.0002,2]
[387194523,1758634217516,-1000.0,0.0002,2]
[387194524,1758634217539,-1000.0,0.0002,2]
[387194525,1758634217562,-1000.0,0.0002,2]
[387194526,1758634217586,-1000.0,0.0002,2]
[387194527,1758634217608,-1000.0,0.0002,2]
[387194528,1758634217630,-1000.0,0.0002,2]
[387194529,1758634217652,-1000.0,0.0002,2]
[387194530,1758634217674,-1000.0,0.0002,2]
[387194531,1758634217695,-1000.0,0.0002,2]
[387194532,1758634217720,-561.06525409,0.0002,2]
[387194533,1758634218576,-438.93474591,0.0002,2]
[387194534,1758634218598,-14561.06525409,0.0002,2]
[387194535,1758634218976,-15000.0,0.0002,2]
[387194536,1758634219714,-15000.0,0.0002,2]
[387194537,1758634220522,-15000.0,0.0002,2]
[387194538,1758634221358,-15000.0,0.0002,2]
[387194539,1758634222209,-15000.0,0.0002,2]
[387194540,1758634223461,-15000.0,0.0002,2]
[387194541,1758634224662,-15000.0,0.0002,2]
[387194549,1758634232011,-250.0,0.00019558,2]
[387194552,1758634232033,-4750.0,0.0002,2]
[387194554,1758634232095,-492.43100003,0.0002,2]
[387194555,1758634232170,-982.43317074,0.0002,2]
[387194556,1758634232182,-1166.0,0.0002,2]
[387194557,1758634232200,-836.09514378,0.0002,2]
[387194558,1758634232212,-4661.13470873,0.0002,2]
[387194559,1758634232223,-1580.37195999,0.0002,2]
[387194560,1758634232234,-3936.83297878,0.0002,2]
[387194561,1758634232245,-5944.88676284,0.0002,2]
[387194562,1758634232257,-5041.76615854,0.0002,2]
[387194563,1758634232268,-2106.39218547,0.0002,2]
[387194564,1758634232456,-30404.20172961,0.0002,2]
[387194703,1758634238196,-106061.87563769,0.0002,2]
[387194704,1758634238207,-1000.0,0.0002,2]
[387194705,1758634238217,-1000.0,0.0002,2]
[387194706,1758634238227,-1000.0,0.0002,2]
[387194707,1758634238237,-1000.0,0.0002,2]
[387194708,1758634238246,-1000.0,0.0002,2]
[387194709,1758634238256,-1000.0,0.0002,2]
[387194710,1758634238265,-1000.0,0.0002,2]
[387194711,1758634238275,-1000.0,0.0002,2]
[387194712,1758634238285,-1000.0,0.0002,2]
[387194713,1758634238294,-1000.0,0.0002,2]
[387194714,1758634238304,-1000.0,0.0002,2]
[387194715,1758634238314,-1000.0,0.0002,2]
[387194716,1758634238324,-1000.0,0.0002,2]
[387194717,1758634238334,-1000.0,0.0002,2]
[387194718,1758634238345,-1000.0,0.0002,2]
[387194719,1758634238355,-1000.0,0.0002,2]
[387194721,1758634238365,-1000.0,0.0002,2]
[387194722,1758634238375,-1000.0,0.0002,2]
[387194723,1758634238384,-1000.0,0.0002,2]
[387194724,1758634238394,-1000.0,0.0002,2]
[387194725,1758634238403,-1000.0,0.0002,2]
[387194726,1758634238413,-1000.0,0.0002,2]
[387194727,1758634238423,-1319.10044956,0.0002,2]
[387194728,1758634238433,-12658.2451632,0.0002,2]
[387194729,1758634238443,-154623.40946407,0.0002,2]
[387194730,1758634238452,-500.0,0.0002,2]
[387194731,1758634238461,-192.90879917,0.0002,2]
[387194732,1758634238475,-4203.62121,0.0002,2]
[387194733,1758634238485,-4203.62121,0.0002,2]
[387194734,1758634238495,-4203.62122,0.0002,2]
[387194735,1758634238505,-4203.62121,0.0002,2]
[387194736,1758634238515,-4203.62121,0.0002,2]
[387194737,1758634238525,-161.79955,0.0002,2]
[387194738,1758634238535,-161.79955,0.0002,2]
[387194739,1758634238544,-4216433.05316098,0.0002,2]
[387194740,1758634238554,-11517.94041873,0.0002,14]
[387194741,1758634238564,-2881.47450148,0.0002,7]
[387194742,1758634238574,-3151.93787407,0.0002,5]
[387194743,1758634238583,-1029.56399412,0.0002,2]
[387194745,1758634238596,-2820.65975815,0.0002,2]
[387194747,1758634238605,-90681.30343953,0.0002,2]
[387194749,1758634238615,-8677.26275431,0.0002,2]
[387194751,1758634238624,-1011.7270749,0.0002,2]
[387194753,1758634238639,-168.0,0.00020008,2]
[387194755,1758634238654,-1990.44,0.00020048,2]
[387194756,1758634238665,-1028.54356168,0.00020058,2]
[387194757,1758634238674,-168.0,0.00020061,2]
[387194758,1758634238684,-251.0,0.0002015,2]